fUST/lending_fUST_20250529
["ID","MTS","AMOUNT","RATE_DAILY","PERIOD"]
[362935051,1748525464877,-596.13,0.00021917,2]
[362935052,1748525464886,-430.0,0.00021917,2]
[362935053,1748525464895,-577.09,0.00021917,2]
[362935054,1748525464906,-430.0,0.00021917,2]
[362935055,1748525464915,-430.0,0.00021917,2]
[362935056,1748525464925,-1701.99,0.00021917,2]
[362935057,1748525464935,-151.0,0.00021917,2]
[362935058,1748525464945,-492.17,0.00021917,2]
[362935059,1748525464955,-430.0,0.00021917,2]
[362935060,1748525464965,-151.0,0.00021917,2]
[362935061,1748525464975,-914.56,0.00021917,2]
[362935062,1748525464984,-430.0,0.00021917,2]
[362935063,1748525464993,-484.94,0.00021917,2]
[362935064,1748525465003,-151.0,0.00021917,2]
[362935065,1748525465014,-701.8,0.00021917,2]
[362935066,1748525465023,-430.0,0.00021917,2]
[362935067,1748525465033,-430.0,0.00021917,2]
[362935068,1748525465043,-444.78,0.00021917,2]
[362935069,1748525465053,-172.628735,0.00021917,2]
[362935070,1748525465062,-172.628735,0.00021917,2]
[362935071,1748525465071,-894.26,0.00021917,2]
[362935072,1748525465081,-1975.68,0.00021917,2]
[362935073,1748525465091,-430.0,0.00021917,2]
[362935074,1748525465101,-430.0,0.00021917,2]
[362935075,1748525465111,-430.0,0.00021917,2]
[362935076,1748525465120,-430.0,0.00021917,2]
[362935077,1748525465130,-430.0,0.00021917,2]
[362935078,1748525465140,-253.47,0.00021917,2]
[362935079,1748525465150,-430.0,0.00021917,2]
[362935080,1748525465159,-545.02,0.00021917,2]
[362935081,1748525465170,-1000.36,0.00021917,2]
[362935082,1748525465180,-177.57,0.00021917,2]
[362935083,1748525465190,-430.0,0.00021917,2]
[362935084,1748525465200,-430.0,0.00021917,2]
[362935085,1748525465209,-491.2,0.00021917,2]
[362935086,1748525465219,-430.0,0.00021917,2]
[362935087,1748525465229,-430.0,0.00021917,2]
[362935088,1748525465341,-430.0,0.00021917,2]
[362935089,1748525465351,-894.39,0.00021917,2]
[362935090,1748525465361,-430.0,0.00021917,2]
[362935091,1748525465372,-430.0,0.00021917,2]
[362935092,1748525465382,-15510.27,0.00022,7]
[362935093,1748525465392,-265.56,0.00022,7]
[362935094,1748525465401,-495.67,0.00022,7]
[362935095,1748525465411,-12262.69,0.00022,2]
[362935096,1748525465420,-12660.97845086,0.00022,7]
[362935097,1748525465431,-2005.55,0.00022,2]
[362935098,1748525465440,-742.53609752,0.00022107,6]
[362935099,1748525465450,-430.0,0.00022191,2]
[362935100,1748525465460,-430.0,0.00022191,2]
[362935101,1748525465470,-430.0,0.00022191,2]
[362935102,1748525465480,-430.0,0.00022191,2]
[362935103,1748525465490,-430.0,0.00022191,2]
[362935104,1748525465500,-430.0,0.00022191,2]
[362935105,1748525465510,-237.17,0.00022191,2]
[362935106,1748525465522,-526.39,0.00022191,2]
[362935107,1748525465532,-430.0,0.00022191,2]
[362935108,1748525465541,-1664.35,0.00022191,2]
[362935109,1748525465551,-554.84,0.00022191,2]
[362935110,1748525465561,-520.7,0.00022191,2]
[362935111,1748525465570,-430.0,0.00022191,2]
[362935112,1748525465581,-430.0,0.00022191,2]
[362935113,1748525465591,-438.32,0.00022191,2]
[362935114,1748525465601,-596.13,0.00022191,2]
[362935115,1748525465612,-430.0,0.00022191,2]
[362935116,1748525465622,-577.09,0.00022191,2]
[362935117,1748525465632,-430.0,0.00022191,2]
[362935118,1748525465641,-430.0,0.00022191,2]
[362935119,1748525465651,-1701.99,0.00022191,2]
[362935120,1748525465662,-492.17,0.00022191,2]
[362935121,1748525465672,-430.0,0.00022191,2]
[362935122,1748525465682,-914.56,0.00022191,2]
[362935123,1748525465692,-430.0,0.00022191,2]
[362935124,1748525465701,-484.94,0.00022191,2]
[362935125,1748525465711,-701.8,0.00022191,2]
[362935126,1748525465721,-430.0,0.00022191,2]
[362935127,1748525465730,-444.78,0.00022191,2]
[362935128,1748525465740,-894.26,0.00022191,2]
[362935129,1748525465750,-1975.68,0.00022191,2]
[362935130,1748525465761,-430.0,0.00022191,2]
[362935131,1748525465778,-430.0,0.00022191,2]
[362935132,1748525465789,-430.0,0.00022191,2]
[362935133,1748525465800,-430.0,0.00022191,2]
[362935134,1748525465811,-430.0,0.00022191,2]
[362935135,1748525465822,-430.0,0.00022191,2]
[362935136,1748525465833,-545.02,0.00022191,2]
[362935137,1748525465843,-1000.36,0.00022191,2]
[362935138,1748525465854,-430.0,0.00022191,2]
[362935139,1748525465863,-491.2,0.00022191,2]
[362935140,1748525465873,-430.0,0.00022191,2]
[362935141,1748525465883,-430.0,0.00022191,2]
[362935142,1748525465893,-560.35,0.00022191,2]
[362935143,1748525465902,-894.39,0.00022191,2]
[362935144,1748525465912,-430.0,0.00022191,2]
[362935145,1748525465922,-430.0,0.00022191,2]
[362935146,1748525465932,-1152.0,0.00022235,2]
[362935147,1748525465941,-742.53609752,0.00022417,7]
[362935148,1748525465951,-430.0,0.00022465,2]
[362935149,1748525465961,-430.0,0.00022465,2]
[362935150,1748525465971,-430.0,0.00022465,2]
[362935151,1748525465980,-430.0,0.00022465,2]
[362935152,1748525465990,-430.0,0.00022465,2]
[362935153,1748525465999,-430.0,0.00022465,2]
[362935154,1748525466009,-1664.35,0.00022465,2]
[362935155,1748525466022,-554.84,0.00022465,2]
[362935156,1748525466031,-430.0,0.00022465,2]
[362935157,1748525466040,-430.0,0.00022465,2]
[362935158,1748525466050,-438.32,0.00022465,2]
[362935159,1748525466059,-596.13,0.00022465,2]
[362935160,1748525466069,-430.0,0.00022465,2]
[362935161,1748525466079,-577.09,0.00022465,2]
[362935162,1748525466089,-430.0,0.00022465,2]
[362935163,1748525466099,-430.0,0.00022465,2]
[362935164,1748525466109,-1701.99,0.00022465,2]
[362935165,1748525466118,-492.17,0.00022465,2]
[362935166,1748525466128,-430.0,0.00022465,2]
[362935167,1748525466138,-914.56,0.00022465,2]
[362935168,1748525466148,-430.0,0.00022465,2]
[362935169,1748525466157,-484.94,0.00022465,2]
[362935170,1748525466167,-701.8,0.00022465,2]
[362935171,1748525466177,-430.0,0.00022465,2]
[362935172,1748525466187,-444.78,0.00022465,2]
[362935173,1748525466196,-894.26,0.00022465,2]
[362935174,1748525466205,-1975.68,0.00022465,2]
[362935175,1748525466215,-430.0,0.00022465,2]
[362935176,1748525466224,-430.0,0.00022465,2]
[362935177,1748525466234,-430.0,0.00022465,2]
[362935178,1748525466243,-430.0,0.00022465,2]
[362935179,1748525466253,-430.0,0.00022465,2]
[362935180,1748525466265,-430.0,0.00022465,2]
[362935181,1748525466276,-545.02,0.00022465,2]
[362935182,1748525466288,-1000.36,0.00022465,2]
[362935183,1748525466300,-430.0,0.00022465,2]
[362935184,1748525466309,-491.2,0.00022465,2]
[362935185,1748525466320,-430.0,0.00022465,2]
[362935186,1748525466331,-430.0,0.00022465,2]
[362935187,1748525466340,-894.39,0.00022465,2]
[362935188,1748525466350,-430.0,0.00022465,2]
[362935189,1748525466359,-742.53609752,0.00022728,7]
[362935190,1748525466369,-430.0,0.00022739,2]
[362935191,1748525466380,-430.0,0.00022739,2]
[362935192,1748525466389,-430.0,0.00022739,2]
[362935193,1748525466399,-1664.35,0.00022739,2]
[362935194,1748525466407,-554.84,0.00022739,2]
[362935195,1748525466417,-430.0,0.00022739,2]
[362935196,1748525466427,-430.0,0.00022739,2]
[362935197,1748525466437,-438.32,0.00022739,2]
[362935198,1748525466446,-596.13,0.00022739,2]
[362935199,1748525466457,-430.0,0.00022739,2]
[362935200,1748525466467,-577.09,0.00022739,2]
[362935201,1748525466477,-540.17,0.00022739,2]
[362935202,1748525466487,-359.06,0.00022739,2]
[362935203,1748525466497,-1701.99,0.00022739,2]
[362935204,1748525466507,-492.17,0.00022739,2]
[362935205,1748525466518,-430.0,0.00022739,2]
[362935206,1748525466527,-914.56,0.00022739,2]
[362935207,1748525466538,-430.0,0.00022739,2]
[362935208,1748525466547,-484.94,0.00022739,2]
[362935209,1748525466558,-701.8,0.00022739,2]
[362935210,1748525466568,-251.15,0.00022739,2]
[362935211,1748525466579,-444.78,0.00022739,2]
[362935212,1748525466588,-894.26,0.00022739,2]
[362935213,1748525466598,-1975.68,0.00022739,2]
[362935214,1748525466608,-430.0,0.00022739,2]
[362935215,1748525466619,-430.0,0.00022739,2]
[362935216,1748525466629,-430.0,0.00022739,2]
[362935217,1748525466639,-430.0,0.00022739,2]
[362935218,1748525466648,-430.0,0.00022739,2]
[362935219,1748525466658,-430.0,0.00022739,2]
[362935220,1748525466668,-545.02,0.00022739,2]
[362935221,1748525466678,-1000.36,0.00022739,2]
[362935222,1748525466689,-430.0,0.00022739,2]
[362935223,1748525466699,-491.2,0.00022739,2]
[362935224,1748525466709,-430.0,0.00022739,2]
[362935225,1748525466720,-430.0,0.00022739,2]
[362935226,1748525466730,-894.39,0.00022739,2]
[362935227,1748525466739,-430.0,0.00022739,2]
[362935228,1748525466749,-160.0,0.00023,3]
[362935229,1748525466759,-160.0,0.00023,3]
[362935230,1748525466769,-191.108186,0.00023013,7]
[362935231,1748525466779,-430.0,0.00023013,2]
[362935232,1748525466789,-430.0,0.00023013,2]
[362935233,1748525466798,-430.0,0.00023013,2]
[362935234,1748525466807,-1664.35,0.00023013,2]
[362935235,1748525466817,-554.84,0.00023013,2]
[362935236,1748525466826,-430.0,0.00023013,2]
[362935237,1748525466835,-430.0,0.00023013,2]
[362935238,1748525466845,-438.32,0.00023013,2]
[362935239,1748525466855,-596.13,0.00023013,2]
[362935240,1748525466864,-430.0,0.00023013,2]
[362935241,1748525466873,-577.09,0.00023013,2]
[362935242,1748525466882,-1701.99,0.00023013,2]
[362935243,1748525466892,-492.17,0.00023013,2]
[362935244,1748525466902,-430.0,0.00023013,2]
[362935245,1748525466912,-914.56,0.00023013,2]
[362935246,1748525466921,-430.0,0.00023013,2]
[362935247,1748525466931,-484.94,0.00023013,2]
[362935248,1748525466941,-701.8,0.00023013,2]
[362935249,1748525466950,-444.78,0.00023013,2]
[362935250,1748525466960,-894.26,0.00023013,2]
[362935251,1748525466970,-1975.68,0.00023013,2]
[362935252,1748525466980,-430.0,0.00023013,2]
[362935253,1748525466990,-430.0,0.00023013,2]
[362935254,1748525466999,-430.0,0.00023013,2]
[362935255,1748525467009,-430.0,0.00023013,2]
[362935256,1748525467020,-430.0,0.00023013,2]
[362935257,1748525467029,-430.0,0.00023013,2]
[362935258,1748525467039,-545.02,0.00023013,2]
[362935259,1748525467049,-1000.36,0.00023013,2]
[362935260,1748525467059,-430.0,0.00023013,2]
[362935261,1748525467069,-491.2,0.00023013,2]
[362935262,1748525467079,-430.0,0.00023013,2]
[362935263,1748525467089,-430.0,0.00023013,2]
[362935264,1748525467099,-894.39,0.00023013,2]
[362935265,1748525467109,-430.0,0.00023013,2]
[362935266,1748525467118,-742.53609752,0.00023038,8]
[362935267,1748525467128,-430.0,0.00023287,2]
[362935268,1748525467138,-552.94,0.00023287,2]
[362935269,1748525467148,-1664.35,0.00023287,2]
[362935270,1748525467158,-554.84,0.00023287,2]
[362935271,1748525467167,-430.0,0.00023287,2]
[362935272,1748525467177,-430.0,0.00023287,2]
[362935273,1748525467187,-438.32,0.00023287,2]
[362935274,1748525467197,-596.13,0.00023287,2]
[362935275,1748525467207,-430.0,0.00023287,2]
[362935276,1748525467216,-577.09,0.00023287,2]
[362935277,1748525467226,-1701.99,0.00023287,2]
[362935278,1748525467236,-492.17,0.00023287,2]
[362935279,1748525467246,-430.0,0.00023287,2]
[362935280,1748525467255,-914.56,0.00023287,2]
[362935281,1748525467266,-404.21,0.00023287,2]
[362935282,1748525467275,-484.94,0.00023287,2]
[362935283,1748525467285,-701.8,0.00023287,2]
[362935284,1748525467296,-444.78,0.00023287,2]
[362935285,1748525467306,-894.26,0.00023287,2]
[362935286,1748525467316,-1975.68,0.00023287,2]
[362935287,1748525467326,-430.0,0.00023287,2]
[362935288,1748525467336,-430.0,0.00023287,2]
[362935289,1748525467347,-159.05,0.00023287,2]
[362935290,1748525467356,-430.0,0.00023287,2]
[362935291,1748525467365,-480.23,0.00023287,2]
[362935292,1748525467376,-430.0,0.00023287,2]
[362935293,1748525467386,-545.02,0.00023287,2]
[362935294,1748525467395,-1000.36,0.00023287,2]
[362935295,1748525467405,-430.0,0.00023287,2]
[362935296,1748525467415,-491.2,0.00023287,2]
[362935297,1748525467426,-163.91,0.00023287,2]
[362935298,1748525467435,-430.0,0.00023287,2]
[362935299,1748525467446,-894.39,0.00023287,2]
[362935300,1748525467455,-430.0,0.00023287,2]
[362935301,1748525467466,-151.0,0.000233,7]
[362935302,1748525467475,-151.0,0.000233,7]
[362935303,1748525467486,-742.53609752,0.00023348,9]
[362935304,1748525467496,-500.0,0.00023356,2]
[362935305,1748525467506,-15510.27,0.000234,7]
[362935306,1748525467515,-265.56,0.000234,7]
[362935307,1748525467525,-495.67,0.000234,7]
[362935308,1748525467534,-12262.69,0.000234,2]
[362935309,1748525467544,-151.0,0.000234,7]
[362935310,1748525467555,-153.0,0.00023425,2]
[362935311,1748525467567,-153.0,0.00023425,2]
[362935312,1748525467578,-153.0,0.00023425,2]
[362935313,1748525467589,-153.0,0.00023425,2]
[362935314,1748525467598,-153.0,0.00023425,2]
[362935315,1748525467607,-2005.55,0.000235,2]
[362935316,1748525467618,-430.0,0.00023561,2]
[362935317,1748525467628,-1664.35,0.00023561,2]
[362935318,1748525467638,-554.84,0.00023561,2]
[362935319,1748525467648,-430.0,0.00023561,2]
[362935320,1748525467657,-430.0,0.00023561,2]
[362935321,1748525467668,-438.32,0.00023561,2]
[362935322,1748525467677,-596.13,0.00023561,2]
[362935323,1748525467687,-548.88,0.00023561,2]
[362935324,1748525467696,-577.09,0.00023561,2]
[362935325,1748525467706,-1701.99,0.00023561,2]
[362935326,1748525467807,-492.17,0.00023561,2]
[362935327,1748525467827,-430.0,0.00023561,2]
[362935328,1748525467837,-914.56,0.00023561,2]
[362935329,1748525467847,-484.94,0.00023561,2]
[362935330,1748525467857,-701.8,0.00023561,2]
[362935331,1748525467867,-2438.585642,0.00023561,2]
[362935332,1748525467877,-2438.585642,0.00023561,2]
[362935333,1748525467886,-444.78,0.00023561,2]
[362935334,1748525467895,-894.26,0.00023561,2]
[362935335,1748525467904,-1975.68,0.00023561,2]
[362935336,1748525467914,-188.52,0.00023561,2]
[362935337,1748525467924,-198.0,0.00023561,2]
[362935338,1748525467933,-430.0,0.00023561,2]
[362935339,1748525467943,-430.0,0.00023561,2]
[362935340,1748525467953,-545.02,0.00023561,2]
[362935341,1748525467962,-1000.36,0.00023561,2]
[362935342,1748525467972,-155.03,0.00023561,2]
[362935343,1748525467982,-491.2,0.00023561,2]
[362935344,1748525467992,-430.0,0.00023561,2]
[362935345,1748525468002,-894.39,0.00023561,2]
[362935346,1748525468011,-430.0,0.00023561,2]
[362935347,1748525468024,-742.53609752,0.00023659,9]
[362935348,1748525468033,-207.4,0.00023733,2]
[362935349,1748525468042,-158.667237,0.00023744,2]
[362935350,1748525468053,-1664.35,0.00023835,2]
[362935351,1748525468063,-554.84,0.00023835,2]
[362935352,1748525468073,-430.0,0.00023835,2]
[362935353,1748525468083,-438.32,0.00023835,2]
[362935354,1748525468092,-596.13,0.00023835,2]
[362935355,1748525468102,-577.09,0.00023835,2]
[362935356,1748525468111,-1701.99,0.00023835,2]
[362935357,1748525468121,-492.17,0.00023835,2]
[362935358,1748525468131,-430.0,0.00023835,2]
[362935359,1748525468140,-914.56,0.00023835,2]
[362935360,1748525468150,-484.94,0.00023835,2]
[362935361,1748525468160,-701.8,0.00023835,2]
[362935362,1748525468169,-444.78,0.00023835,2]
[362935363,1748525468179,-894.26,0.00023835,2]
[362935364,1748525468188,-1975.68,0.00023835,2]
[362935365,1748525468197,-430.0,0.00023835,2]
[362935366,1748525468207,-430.0,0.00023835,2]
[362935367,1748525468217,-545.02,0.00023835,2]
[362935368,1748525468228,-1000.36,0.00023835,2]
[362935369,1748525468239,-491.2,0.00023835,2]
[362935370,1748525468249,-430.0,0.00023835,2]
[362935371,1748525468259,-894.39,0.00023835,2]
[362935372,1748525468271,-430.0,0.00023835,2]
[362935373,1748525468282,-712.53848447,0.000239,2]
[362935374,1748525468293,-742.53609752,0.00023969,10]
[362935375,1748525468305,-315.15,0.000241,2]
[362935376,1748525468315,-179.245,0.00024109,2]
[362935377,1748525468325,-1664.35,0.00024109,2]
[362935378,1748525468337,-554.84,0.00024109,2]
[362935379,1748525468346,-430.0,0.00024109,2]
[362935380,1748525468356,-438.32,0.00024109,2]
[362935381,1748525468366,-596.13,0.00024109,2]
[362935382,1748525468377,-577.09,0.00024109,2]
[362935383,1748525468386,-1701.99,0.00024109,2]
[362935384,1748525468396,-492.17,0.00024109,2]
[362935385,1748525468406,-430.0,0.00024109,2]
[362935386,1748525468415,-914.56,0.00024109,2]
[362935387,1748525468425,-484.94,0.00024109,2]
[362935388,1748525468435,-701.8,0.00024109,2]
[362935389,1748525468445,-444.78,0.00024109,2]
[362935390,1748525468455,-894.26,0.00024109,2]
[362935391,1748525468465,-1975.68,0.00024109,2]
[362935392,1748525468475,-430.0,0.00024109,2]
[362935393,1748525468486,-430.0,0.00024109,2]
[362935394,1748525468496,-545.02,0.00024109,2]
[362935395,1748525468507,-1000.36,0.00024109,2]
[362935396,1748525468517,-491.2,0.00024109,2]
[362935397,1748525468528,-430.0,0.00024109,2]
[362935398,1748525468538,-894.39,0.00024109,2]
[362935399,1748525468548,-430.0,0.00024109,2]
[362935400,1748525468558,-153.0,0.00024247,2]
[362935401,1748525468568,-742.53609752,0.00024279,10]
[362935402,1748525468578,-498.0,0.00024322,2]
[362935403,1748525468588,-405.0,0.00024346,2]
[362935404,1748525468598,-961.0,0.00024346,2]
[362935405,1748525468607,-5861.67,0.00024357,9]
[362935406,1748525468617,-1664.35,0.00024383,2]
[362935407,1748525468627,-554.84,0.00024383,2]
[362935408,1748525468637,-193.72781469,0.00024383,2]
[362935409,1748525468647,-438.32,0.00024383,2]
[362935410,1748525468656,-596.13,0.00024383,2]
[362935411,1748525468666,-577.09,0.00024383,2]
[362935412,1748525468676,-1701.99,0.00024383,2]
[362935413,1748525468686,-492.17,0.00024383,2]
[362935414,1748525468695,-311.26,0.00024383,2]
[362935415,1748525468705,-914.56,0.00024383,2]
[362935416,1748525468714,-484.94,0.00024383,2]
[362935417,1748525468724,-701.8,0.00024383,2]
[362935418,1748525468733,-444.78,0.00024383,2]
[362935419,1748525468742,-894.26,0.00024383,2]
[362935420,1748525468752,-1975.68,0.00024383,2]
[362935421,1748525468762,-430.0,0.00024383,2]
[362935422,1748525468774,-430.0,0.00024383,2]
[362935423,1748525468785,-545.02,0.00024383,2]
[362935424,1748525468794,-1000.36,0.00024383,2]
[362935425,1748525468805,-491.2,0.00024383,2]
[362935426,1748525468815,-430.0,0.00024383,2]
[362935427,1748525468826,-430.0,0.00024383,2]
[362935428,1748525468836,-894.39,0.00024383,2]
[362935429,1748525468846,-15510.27,0.000244,7]
[362935430,1748525468856,-500.87299825,0.00024448,3]
[362935431,1748525468865,-12262.69,0.000245,2]
[362935432,1748525468874,-2005.55,0.000245,2]
[362935433,1748525468884,-332.548263,0.000245,3]
[362935434,1748525468893,-306.0,0.00024521,2]
[362935435,1748525468903,-742.53609752,0.0002459,11]
[362935436,1748525468912,-852.299545,0.00024597,15]
[362935437,1748525468921,-358.49,0.00024657,3]
[362935438,1748525468931,-1664.35,0.00024657,2]
[362935439,1748525468940,-554.84,0.00024657,2]
[362935440,1748525468950,-438.32,0.00024657,2]
[362935441,1748525468959,-596.13,0.00024657,2]
[362935442,1748525468969,-577.09,0.00024657,2]
[362935443,1748525468978,-1701.99,0.00024657,2]
[362935444,1748525468987,-492.17,0.00024657,2]
[362935445,1748525468997,-914.56,0.00024657,2]
[362935446,1748525469007,-484.94,0.00024657,2]
[362935447,1748525469016,-701.8,0.00024657,2]
[362935448,1748525469026,-444.78,0.00024657,2]
[362935449,1748525469036,-894.26,0.00024657,2]
[362935450,1748525469047,-1975.68,0.00024657,2]
[362935451,1748525469056,-430.0,0.00024657,2]
[362935452,1748525469066,-430.0,0.00024657,2]
[362935453,1748525469076,-545.02,0.00024657,2]
[362935454,1748525469086,-1000.36,0.00024657,2]
[362935455,1748525469096,-491.2,0.00024657,2]
[362935456,1748525469105,-2620.39996068,0.00024657,7]
[362935457,1748525469115,-430.0,0.00024657,2]
[362935458,1748525469124,-894.39,0.00024657,2]
[362935459,1748525469133,-565.18,0.00024657,2]
[362935460,1748525469142,-182.5278169,0.00024658,2]
[362935461,1748525469151,-519.11,0.00024786,6]
[362935462,1748525469161,-200.0,0.0002489,2]
[362935463,1748525469170,-99690.96292384,0.000249,2]
[362935464,1748525469180,-889.78544504,0.000249,3]
[362935465,1748525469190,-151.0,0.000249,7]
[362935466,1748525469199,-265.56,0.000249,7]
[362935467,1748525469208,-495.67,0.000249,7]
[362935468,1748525469218,-151.0,0.000249,7]
[362935469,1748525469228,-151.0,0.000249,7]
[362935470,1748525469237,-151.0,0.000249,7]
[362935471,1748525469246,-151.0,0.000249,7]
[362935472,1748525469255,-151.0,0.000249,2]
[362935473,1748525469265,-152.81,0.000249,31]
[362935474,1748525469275,-152.81,0.000249,31]
[362935475,1748525469286,-152.81,0.000249,31]
[362935476,1748525469296,-152.81,0.000249,31]
[362935477,1748525469307,-152.81,0.000249,31]
[362935478,1748525469316,-152.81,0.000249,31]
[362935479,1748525469325,-152.81,0.000249,31]
[362935480,1748525469336,-277.758209,0.000249,7]
[362935481,1748525469346,-277.758209,0.000249,7]
[362935482,1748525469356,-151.380611,0.000249,7]
[362935483,1748525469365,-151.0,0.000249,7]
[362935484,1748525469377,-496070.098566,0.000249,2]
[362935485,1748525469387,-1433.095551,0.000249,7]
[362935486,1748525469396,-1433.095551,0.000249,7]
[362935487,1748525469405,-172.628735,0.000249,7]
[362935488,1748525469415,-172.628735,0.000249,7]
[362935489,1748525469425,-153.947552,0.000249,7]
[362935490,1748525469435,-153.947552,0.000249,7]
[362935491,1748525469444,-742.53609752,0.000249,12]
[362935492,1748525469453,-1664.35,0.00024931,2]
[362935493,1748525469463,-554.84,0.00024931,2]
[362935494,1748525469473,-438.32,0.00024931,2]
[362935495,1748525469483,-596.13,0.00024931,2]
[362935496,1748525469493,-577.09,0.00024931,2]
[362935497,1748525469501,-1701.99,0.00024931,2]
[362935498,1748525469511,-492.17,0.00024931,2]
[362935499,1748525469523,-914.56,0.00024931,2]
[362935500,1748525469532,-484.94,0.00024931,2]
[362935501,1748525469542,-701.8,0.00024931,2]
[362935502,1748525469551,-444.78,0.00024931,2]
[362935503,1748525469561,-894.26,0.00024931,2]
[362935504,1748525469571,-1975.68,0.00024931,2]
[362935505,1748525469580,-430.0,0.00024931,2]
[362935506,1748525469589,-430.0,0.00024931,2]
[362935507,1748525469599,-545.02,0.00024931,2]
[362935508,1748525469609,-1000.36,0.00024931,2]
[362935509,1748525469618,-491.2,0.00024931,2]
[362935510,1748525469628,-894.39,0.00024931,2]
[362935511,1748525469637,-519.11,0.00024986,5]
[362935512,1748525469647,-598.38445187,0.00024998,2]
[362935513,1748525469656,-877.51615271,0.00025,3]
[362935514,1748525469666,-229.26895353,0.00025,3]
[362935515,1748525469675,-1433748.27975883,0.00025,30]
[362935516,1748525469685,-160.0,0.00025,3]
[362935517,1748525469695,-2019.16379809,0.00025,14]
[362935518,1748525469704,-1482534.69671422,0.00025,30]
[362935519,1748525470003,-27895.46274034,0.00025,30]
[362935520,1748525470161,-1018.03705388,0.00018399,2]
[362935521,1748525470171,-10202.6028742,0.00025,30]
[362935522,1748525471414,-428.56114188,0.00016159,2]
[362935523,1748525471423,-500.0,0.00016159,2]
[362935524,1748525471432,-500.0,0.00016159,2]
[362935525,1748525471442,-275.18966371,0.00016159,2]
[362935526,1748525471452,-161.18398629,0.00016159,2]
[362935527,1748525471463,-500.0,0.00016159,2]
[362935528,1748525471474,-500.0,0.00016159,2]
[362935529,1748525471484,-196.66864999,0.00016159,2]
[362935530,1748525471494,-500.0,0.00016159,2]
[362935531,1748525471504,-500.0,0.00016159,2]
[362935532,1748525471515,-500.0,0.00016159,2]
[362935533,1748525471526,-500.0,0.00016159,2]
[362935534,1748525471537,-500.0,0.00016159,2]
[362935535,1748525471546,-500.0,0.00016159,2]
[362935536,1748525471556,-500.0,0.00016159,2]
[362935537,1748525471566,-500.0,0.00016159,2]
[362935538,1748525471577,-500.0,0.00016159,2]
[362935539,1748525471588,-500.0,0.00016159,2]
[362935540,1748525471598,-300.0,0.00016159,2]
[362935541,1748525471607,-500.0,0.00016159,2]
[362935542,1748525471618,-500.0,0.00016159,2]
[362935543,1748525471628,-155.3108019,0.00016159,2]
[362935544,1748525471638,-206.57681235,0.00016159,2]
[362935545,1748525471648,-500.0,0.00016159,2]
[362935546,1748525471658,-500.0,0.00016159,2]
[362935547,1748525471668,-500.0,0.00016159,2]
[362935548,1748525471678,-500.0,0.00016159,2]
[362935549,1748525471688,-500.0,0.00016159,2]
[362935550,1748525471697,-500.0,0.00016159,2]